bitfinex/quotes_BTCUSD_20220201
["timestamp","ask_amount","ask_price","bid_price","bid_amount"]
[1643739547106,1.600857,38811.0,38810.0,0.00133223]
[1643739547608,0.400857,38811.0,38810.0,0.00133223]
[1643739547809,0.400857,38811.0,38807.0,0.29609588]
[1643739548111,0.400857,38811.0,38809.0,0.00133226]
[1643739548112,0.0516,38811.0,38809.0,0.00133226]
[1643739548308,0.349257,38810.0,38809.0,0.00133226]
[1643739548607,0.0516,38810.0,38809.0,0.00133226]
[1643739549012,0.0516,38810.0,38807.0,0.29609588]
[1643739549209,0.0516,38810.0,38808.0,0.00133217]
[1643739550261,0.0516,38810.0,38805.0,0.1067104]
[1643739550457,0.0516,38810.0,38807.0,0.00133218]
[1643739551259,0.349257,38809.0,38807.0,0.00133218]
[1643739551561,0.0516,38808.0,38805.0,0.010315]
[1643739551758,0.0516,38808.0,38807.0,0.00133219]
[1643739552159,0.800857,38808.0,38807.0,0.00133219]
[1643739552358,0.40054694,38808.0,38807.0,0.00133219]
[1643739552757,0.40054694,38808.0,38802.0,0.21737715]
[1643739552758,0.05128994,38808.0,38802.0,0.21737715]
[1643739552959,0.05128994,38808.0,38806.0,0.00133223]
[1643739554006,0.05128994,38808.0,38805.0,0.00133224]
[1643739554209,0.05128994,38808.0,38802.0,0.2227056]
[1643739554606,0.05128994,38808.0,38802.0,0.2727056]
[1643739554807,0.05128994,38808.0,38802.0,0.20170939]
[1643739556009,0.05128994,38808.0,38802.0,0.01861826]
[1643739556408,0.05128994,38808.0,38803.0,0.00133062]
[1643739557409,0.05128994,38808.0,38800.0,0.25852631]
[1643739557612,0.05128994,38808.0,38803.0,0.00133062]
[1643739558662,0.05128994,38808.0,38800.0,0.40733136]
[1643739558863,0.05128994,38808.0,38803.0,0.00133062]
[1643739559863,0.05128994,38808.0,38800.0,0.40733136]
[1643739560062,0.05128994,38808.0,38803.0,0.00133035]
[1643739561164,0.05128994,38808.0,38801.0,0.05]
[1643739561364,0.05128994,38808.0,38803.0,0.00133035]
[1643739562208,0.05128994,38808.0,38800.0,0.35733136]
[1643739562408,0.05128994,38808.0,38803.0,0.00133035]
[1643739563411,0.05128994,38808.0,38802.0,0.010315]
[1643739563610,0.05128994,38808.0,38803.0,0.00133039]
[1643739564615,0.05128994,38808.0,38800.0,0.35733136]
[1643739564912,0.05128994,38808.0,38803.0,0.00133039]
[1643739565870,0.05128994,38808.0,38800.0,0.37822582]
[1643739566068,0.05128994,38808.0,38803.0,0.00133039]
[1643739567068,0.05128994,38808.0,38800.0,0.35733136]
[1643739567272,0.05128994,38808.0,38803.0,0.00133038]
[1643739567870,0.05056994,38808.0,38803.0,0.00133038]
[1643739568269,0.05056994,38808.0,38800.0,0.09880505]
[1643739568472,0.05056994,38808.0,38803.0,0.00133038]
[1643739568670,0.349257,38807.0,38803.0,0.00133038]
[1643739568871,0.25244615,38806.0,38803.0,0.00133038]
[1643739569118,0.349257,38805.0,38803.0,0.00133038]
[1643739569316,1.66693292,38804.0,38803.0,0.00133038]
[1643739569517,2.01618992,38804.0,38799.0,0.42]
[1643739569718,0.064454,38801.0,38799.0,0.42]
[1643739569919,1.0919325,38800.0,38799.0,0.42]
[1643739570117,1.09162231,38800.0,38799.0,0.42]
[1643739571118,1.09116841,38800.0,38799.0,0.42]
[1643739571519,2.45416841,38800.0,38799.0,0.42]
[1643739572320,2.50416841,38800.0,38799.0,0.42]
[1643739572777,1.14116841,38800.0,38799.0,0.42]
[1643739572971,1.74116841,38800.0,38799.0,0.42]
[1643739573571,1.14116841,38800.0,38799.0,0.42]
[1643739574573,2.50416841,38800.0,38799.0,0.42]
[1643739575075,2.55416841,38800.0,38799.0,0.42]
[1643739575272,2.65416841,38800.0,38799.0,0.42]
[1643739575473,1.29116841,38800.0,38799.0,0.42]
[1643739576509,1.09116841,38800.0,38799.0,0.40067808]
[1643739577112,0.59116841,38800.0,38799.0,0.40067808]
[1643739578012,1.04116841,38800.0,38799.0,0.40067808]
[1643739578812,1.59116841,38800.0,38799.0,0.40067808]
[1643739579013,1.04116841,38800.0,38799.0,0.40067808]
[1643739580369,0.59116841,38800.0,38799.0,0.40067808]
[1643739580565,0.40009291,38800.0,38799.0,0.40067808]
[1643739580862,0.75009291,38800.0,38799.0,0.40067808]
[1643739581062,0.39884291,38800.0,38799.0,0.40067808]
[1643739582570,0.582191,38800.0,38799.0,0.40067808]
[1643739583867,0.632191,38800.0,38799.0,0.40067808]
[1643739584415,0.44884291,38800.0,38799.0,0.40067808]
[1643739584815,0.62002025,38800.0,38799.0,0.40067808]
[1643739585016,0.44884291,38800.0,38799.0,0.40067808]
[1643739585818,0.39884291,38800.0,38799.0,0.40067808]
[1643739588265,0.39853271,38800.0,38799.0,0.40067808]
[1643739589964,0.57665181,38800.0,38799.0,0.40067808]
[1643739590165,0.39853271,38800.0,38799.0,0.40067808]
[1643739593510,0.5742386,38800.0,38799.0,0.40067808]
[1643739593711,0.39853271,38800.0,38799.0,0.40067808]
[1643739594511,0.56937618,38800.0,38799.0,0.40067808]
[1643739594711,0.39853271,38800.0,38799.0,0.40067808]
[1643739596565,0.064447,38804.0,38799.0,0.40067808]
[1643739596765,0.251494,38808.0,38799.0,0.40067808]
[1643739596766,0.349259,38803.0,38799.0,0.40067808]
[1643739596966,0.1226,38808.0,38799.0,0.40067808]
[1643739597167,0.349259,38807.0,38799.0,0.40067808]
[1643739597368,0.349259,38807.0,38802.0,0.27374642]
[1643739597766,1.363,38811.0,38802.0,0.27374642]
[1643739597767,0.349259,38810.0,38802.0,0.36257967]
[1643739598170,0.064444,38807.0,38802.0,0.36257967]
[1643739598369,0.349259,38806.0,38802.0,0.36257967]
[1643739598670,0.349259,38806.0,38803.0,0.00075781]
[1643739599112,0.56913176,38812.0,38803.0,0.00075781]
[1643739599113,0.349259,38811.0,38803.0,0.00075781]
[1643739599313,0.349259,38810.0,38803.0,0.00075781]
[1643739599512,0.349259,38811.0,38802.0,0.36257967]
[1643739599713,0.064439,38809.0,38803.0,0.00133032]
[1643739600516,0.349259,38808.0,38803.0,0.00133032]
[1643739600714,0.349259,38808.0,38802.0,0.36257967]
[1643739601018,0.064439,38809.0,38803.0,0.00133031]
[1643739601219,0.10114465,38815.0,38803.0,0.19616348]
[1643739601718,0.10114465,38815.0,38803.0,0.39616348]
[1643739601719,0.00114465,38815.0,38803.0,0.39616348]
[1643739601916,0.32494976,38821.0,38804.0,0.006695]
[1643739602120,0.32494976,38821.0,38813.0,0.11145001]
[1643739602321,0.00114474,38815.0,38813.0,0.11145001]
[1643739602770,0.00114474,38815.0,38814.0,0.0920571]
[1643739603267,0.37910805,38825.0,38814.0,0.0920571]
[1643739603268,0.00114501,38816.0,38814.0,0.0920571]
[1643739604269,0.064421,38821.0,38814.0,0.0920571]
[1643739604469,0.00114501,38817.0,38814.0,0.23646562]
[1643739604670,0.00114501,38817.0,38814.0,0.04987788]
[1643739604869,0.00114501,38817.0,38814.0,0.22892144]
[1643739605473,0.32494976,38828.0,38815.0,0.00668]
[1643739605671,0.32463956,38831.0,38814.0,0.29333244]
[1643739605973,0.00114501,38817.0,38814.0,0.64493244]
[1643739606172,0.00052993,38817.0,38815.0,0.23671795]
[1643739606374,0.00457884,38828.0,38817.0,0.27677169]
[1643739606622,0.00457884,38828.0,38822.0,0.09600732]
[1643739606823,0.01932534,38829.0,38828.0,0.91827875]
[1643739607023,0.01932534,38829.0,38828.0,1.24011258]
[1643739607223,0.01932534,38829.0,38828.0,1.44011258]
[1643739608124,0.3783,38840.0,38828.0,1.35449658]
[1643739608324,0.002,38840.0,38828.0,1.34784458]
[1643739608624,0.002,38840.0,38829.0,0.18155499]
[1643739609225,0.002,38840.0,38831.0,0.064383]
[1643739609426,0.002,38840.0,38832.0,0.18728201]
[1643739609626,0.002,38840.0,38831.0,0.064383]
[1643739610025,0.002,38840.0,38829.0,0.26896999]
[1643739610676,0.00139346,38836.0,38829.0,0.26896999]
[1643739611477,0.066389,38840.0,38826.0,0.524468]
[1643739611686,0.00139346,38834.0,38826.0,0.3957]
[1643739612777,0.15251575,38832.0,38826.0,0.3957]
[1643739612977,0.15390921,38832.0,38825.0,0.24]
[1643739613379,0.15390921,38832.0,38817.0,0.673856]
[1643739613380,0.15390921,38832.0,38822.0,0.00473797]
[1643739613578,0.400859,38831.0,38822.0,0.00473797]
[1643739614217,0.064411,38827.0,38822.0,0.00473797]
[1643739614414,0.116011,38827.0,38822.0,0.00473797]
[1643739615014,0.0516,38827.0,38822.0,0.00473797]
[1643739615418,0.00139346,38826.0,38822.0,0.00473797]
[1643739616314,0.0516,38827.0,38822.0,0.00473797]
[1643739616515,0.00139346,38826.0,38822.0,0.00473797]
[1643739617518,0.0516,38827.0,38822.0,0.00473797]
[1643739617519,0.064412,38827.0,38822.0,0.00473797]
[1643739617771,0.40225246,38826.0,38822.0,0.00473797]
[1643739618763,0.400859,38826.0,38822.0,0.00473797]
[1643739618964,0.40225246,38826.0,38822.0,0.00473797]
[1643739619965,0.400859,38826.0,38822.0,0.00473797]
[1643739620165,0.40225246,38826.0,38822.0,0.00473797]
[1643739621067,0.400859,38826.0,38822.0,0.00473797]
[1643739621518,0.40225246,38826.0,38822.0,0.00473797]
[1643739622317,0.400859,38826.0,38822.0,0.00473797]
[1643739622519,0.40225246,38826.0,38822.0,0.00473797]
[1643739623517,0.400859,38826.0,38822.0,0.00473797]
[1643739623717,0.40225246,38826.0,38822.0,0.00473797]
[1643739623918,0.40194239,38826.0,38822.0,0.00473797]
[1643739624720,0.40054893,38826.0,38819.0,0.33250336]
[1643739624919,0.40194239,38826.0,38819.0,0.33250336]
[1643739625965,0.40054893,38826.0,38819.0,0.33250336]
[1643739626266,0.00139346,38824.0,38819.0,0.33250336]
[1643739626466,0.0516,38823.0,38819.0,0.33250336]
[1643739627071,0.0516,38823.0,38822.0,0.79616382]
[1643739627266,0.064407,38830.0,38822.0,0.79616382]
[1643739627467,0.00139346,38823.0,38822.0,0.41247937]
[1643739628468,0.00139346,38824.0,38822.0,0.41247937]
[1643739629513,0.064407,38830.0,38822.0,0.41247937]
[1643739629716,0.00139346,38825.0,38822.0,0.41247937]
[1643739630714,0.064412,38827.0,38822.0,0.41247937]
[1643739630915,0.00139346,38825.0,38822.0,0.41247937]
[1643739631114,0.349252,38824.0,38822.0,0.41247937]
[1643739631316,0.00139346,38825.0,38818.0,0.08918172]
[1643739631916,0.0516,38824.0,38818.0,0.08918172]
[1643739632117,0.00139346,38823.0,38818.0,0.08918172]
[1643739632319,0.00139346,38823.0,38817.0,0.3673]
[1643739633109,0.14089579,38820.0,38817.0,0.3673]
[1643739633307,0.19249579,38820.0,38814.0,0.41701832]
[1643739633712,0.349252,38819.0,38814.0,0.41701832]
[1643739633909,0.0516,38818.0,38814.0,0.41701832]
[1643739634108,0.993652,38817.0,38814.0,0.41701832]
[1643739634308,0.0516,38816.0,38814.0,0.41701832]
[1643739634509,0.349252,38815.0,38814.0,0.41701832]
[1643739634708,0.349252,38815.0,38810.0,0.00145742]
[1643739634709,0.26287173,38813.0,38810.0,0.00145742]
[1643739634915,0.400852,38812.0,38810.0,0.29060124]
[1643739635109,0.0516,38812.0,38810.0,0.29060124]
[1643739635510,0.0516,38812.0,38810.0,0.28914382]
[1643739636313,0.26287173,38813.0,38811.0,0.4559857]
[1643739637455,0.26287173,38813.0,38812.0,1.09993296]
[1643739637655,0.26287173,38813.0,38812.0,1.10692496]
[1643739637852,0.26287173,38813.0,38812.0,0.921404]
[1643739638652,0.26287173,38813.0,38812.0,0.856992]
[1643739643066,0.26287173,38813.0,38812.0,1.156992]
[1643739644116,0.26287173,38813.0,38812.0,0.856992]
[1643739645620,0.26287173,38813.0,38812.0,0.006992]
[1643739645820,0.26287173,38813.0,38810.0,10.00145736]
[1643739646519,0.26287173,38813.0,38810.0,10.00145735]
[1643739647520,0.26287173,38813.0,38810.0,10.0]
[1643739647777,0.37890573,38813.0,38810.0,10.00145735]
[1643739648568,0.08397283,38812.0,38810.0,10.00145735]
[1643739648769,0.08397283,38812.0,38810.0,10.0]
[1643739648770,2.096,38811.0,38810.0,10.0]
[1643739648969,3.459,38811.0,38810.0,10.00145735]
[1643739649166,3.609,38811.0,38810.0,9.75295735]
[1643739649668,4.08238049,38811.0,38810.0,8.34822538]
[1643739649868,4.10658206,38811.0,38810.0,8.34676803]
[1643739650066,4.43229444,38811.0,38810.0,8.34676803]
[1643739651168,4.43229444,38811.0,38810.0,6.76055162]
[1643739651530,0.064476,38804.0,38795.0,0.0009]
[1643739651727,1.363,38797.0,38793.0,0.0031]
[1643739651928,0.993652,38796.0,38793.0,0.0031]
[1643739652125,0.6444,38794.0,38793.0,0.0031]
[1643739652329,0.6444,38794.0,38792.0,0.002]
[1643739652330,1.32768224,38794.0,38792.0,0.002]
[1643739652527,0.993652,38793.0,38790.0,0.0031]
[1643739652735,0.0516,38792.0,38789.0,0.0031]
[1643739653030,0.0516,38792.0,38787.0,0.14072984]
[1643739653427,0.0516,38792.0,38786.0,0.24700605]
[1643739653627,0.0516,38792.0,38786.0,0.32832455]
[1643739653828,0.0516,38792.0,38786.0,0.30907339]
[1643739654028,0.0516,38792.0,38789.0,0.09784724]
[1643739654229,0.6444,38798.0,38789.0,0.09784724]
[1643739654429,0.0516,38796.0,38795.0,1.67232531]
[1643739654629,0.46,38808.0,38795.0,1.67232531]
[1643739654630,0.46,38808.0,38795.0,1.67934931]
[1643739654829,0.46,38808.0,38795.0,1.67232531]
[1643739655028,0.00070709,38805.0,38795.0,1.67232531]
[1643739655275,0.13582784,38804.0,38795.0,1.4]
[1643739655869,0.13582784,38804.0,38795.0,1.41870268]
[1643739656077,0.13582784,38804.0,38798.0,0.00144986]
[1643739656275,0.349252,38803.0,38798.0,0.00144986]
[1643739656672,0.13582784,38804.0,38798.0,0.00144986]
[1643739656871,0.349252,38803.0,38798.0,0.00144986]
[1643739657170,0.13582784,38804.0,38795.0,1.4]
[1643739657372,0.13582784,38804.0,38799.0,0.00144984]
[1643739657570,0.349252,38803.0,38799.0,0.00144984]
[1643739657771,0.06586674,38805.0,38799.0,0.00144984]
[1643739657772,0.00141436,38805.0,38799.0,0.00144984]
[1643739658371,0.26287173,38813.0,38798.0,0.2015558]
[1643739658573,0.26287173,38813.0,38800.0,0.00144981]
[1643739658574,0.00141442,38805.0,38800.0,0.00144981]
[1643739658774,0.00141442,38805.0,38804.0,1.39445184]
[1643739659617,0.26287173,38813.0,38804.0,1.39445184]
[1643739659817,0.00141445,38806.0,38804.0,1.39445184]
[1643739660721,0.26287173,38813.0,38804.0,1.39445184]
[1643739661118,0.00141445,38807.0,38804.0,1.39445184]
[1643739661720,0.00141445,38807.0,38805.0,0.19908497]
[1643739661918,0.26287173,38813.0,38805.0,0.19908497]
[1643739662121,0.26287173,38813.0,38812.0,1.1]
[1643739663073,0.26287173,38813.0,38810.0,0.09456706]
[1643739663278,0.349252,38812.0,38810.0,0.09456706]
[1643739663474,0.26287173,38813.0,38810.0,0.09456706]
[1643739663873,0.349252,38812.0,38810.0,0.09456706]
[1643739664074,0.26287173,38813.0,38810.0,0.09456706]
[1643739664574,0.26428618,38813.0,38805.0,0.2205776]
[1643739664875,0.26428618,38813.0,38804.0,1.1]
[1643739665274,0.26428618,38813.0,38807.0,0.22714822]
[1643739665673,0.26287173,38813.0,38808.0,0.08232092]
[1643739665875,0.00141445,38812.0,38808.0,0.08232092]
[1643739666725,0.26287173,38813.0,38808.0,0.08232092]
[1643739666925,0.00141445,38812.0,38808.0,0.08232092]
[1643739667926,0.26287173,38813.0,38808.0,0.08232092]
[1643739668126,0.00141445,38812.0,38808.0,0.08232092]
[1643739669229,0.26287173,38813.0,38808.0,0.08232092]
[1643739669428,0.00141445,38812.0,38808.0,0.08232092]
[1643739670374,0.26287173,38813.0,38808.0,0.08232092]
[1643739670573,0.35066645,38812.0,38808.0,0.08232092]
[1643739671673,0.349252,38812.0,38808.0,0.08232092]
[1643739671872,0.35066645,38812.0,38808.0,0.08232092]
[1643739672775,0.349252,38812.0,38807.0,0.22714822]
[1643739672973,0.00141445,38812.0,38807.0,0.27714822]
[1643739674121,0.00141445,38811.0,38807.0,0.27714822]
[1643739674320,0.00141445,38811.0,38808.0,0.1004733]
[1643739674923,0.00141445,38811.0,38809.0,0.21357426]
[1643739675122,0.26287173,38813.0,38809.0,0.26517426]
[1643739675321,0.00141445,38812.0,38809.0,0.36517426]
[1643739675521,4.45e-06,38812.0,38809.0,0.36517426]
[1643739675721,4.45e-06,38812.0,38810.0,0.05]
[1643739675920,4.45e-06,38812.0,38811.0,0.2280298]
[1643739676121,4.45e-06,38812.0,38811.0,0.4584458]
[1643739676322,0.26287173,38813.0,38811.0,0.5584458]
[1643739676524,0.26287173,38813.0,38812.0,1.60999189]
[1643739676723,0.26287173,38813.0,38812.0,1.93806809]
[1643739676920,0.26287173,38813.0,38812.0,1.7280762]
[1643739677773,0.26287173,38813.0,38812.0,1.5780762]
[1643739677970,0.26287173,38813.0,38812.0,1.6280762]
[1643739678569,0.26287173,38813.0,38812.0,1.7280762]
[1643739681174,0.26287173,38813.0,38812.0,1.7383882]
[1643739681374,0.26287173,38813.0,38812.0,1.7280762]
[1643739681823,0.6625116,38813.0,38812.0,1.7280762]
[1643739683527,0.6625116,38813.0,38808.0,0.1004733]
[1643739683726,0.6625116,38813.0,38808.0,0.1]
[1643739683925,0.6625116,38813.0,38805.0,0.00074731]
[1643739684525,0.6625116,38813.0,38806.0,0.10917836]
[1643739684926,0.6625116,38813.0,38805.0,0.16744217]
[1643739685126,0.6625116,38813.0,38805.0,0.11332817]
[1643739685377,0.6625116,38813.0,38805.0,0.10301517]
[1643739685777,0.6625116,38813.0,38805.0,0.00145426]
[1643739685978,0.6625116,38813.0,38802.0,0.1]
[1643739685979,0.413691,38812.0,38802.0,0.1]
[1643739686176,0.57165357,38812.0,38805.0,0.00145425]
[1643739686775,0.349252,38812.0,38805.0,0.00145425]
[1643739686979,0.27296444,38811.0,38805.0,0.00145425]
[1643739687179,0.064445,38809.0,38794.0,0.52019188]
[1643739687382,0.34800913,38808.0,38805.0,0.00145424]
[1643739687576,0.349252,38807.0,38800.0,0.00581774]
[1643739687776,0.29097367,38806.0,38800.0,0.00581774]
[1643739687976,0.0516,38806.0,38800.0,0.00581774]
[1643739688176,0.349252,38805.0,38800.0,0.00581774]
[1643739688381,0.17311619,38802.0,38791.0,0.3764]
[1643739688778,0.21234358,38801.0,38791.0,0.3764]
[1643739689018,0.17311619,38802.0,38791.0,0.3764]
[1643739689218,0.17311619,38802.0,38794.0,0.27604497]
[1643739689419,0.17311619,38802.0,38796.0,0.10428178]
[1643739689722,0.17311619,38802.0,38796.0,0.10502607]
[1643739690522,0.17311619,38802.0,38796.0,0.00074429]
[1643739692227,0.17311619,38802.0,38797.0,0.00074427]
[1643739692424,0.19446862,38801.0,38797.0,0.00074427]
[1643739693076,0.17311619,38802.0,38799.0,0.10336379]
[1643739693880,0.17311619,38802.0,38797.0,0.00145234]
[1643739694078,0.19164561,38801.0,38800.0,0.00125]
[1643739694274,0.17311619,38802.0,38800.0,0.00125]
[1643739695275,0.17311619,38802.0,38799.0,0.00106584]
[1643739695679,0.17311619,38802.0,38796.0,0.08615332]
[1643739695975,0.18763287,38801.0,38796.0,0.08615332]
[1643739696176,0.17311619,38802.0,38796.0,0.08615332]
[1643739696741,0.19411478,38801.0,38796.0,0.0732747]
[1643739696941,0.19358313,38801.0,38796.0,0.0732747]
[1643739697141,0.00643931,38801.0,38796.0,0.0732747]
[1643739697344,0.19378928,38801.0,38796.0,0.0732747]
[1643739697545,0.00643931,38801.0,38796.0,0.0732747]
[1643739697742,0.00643931,38801.0,38795.0,0.1064582]
[1643739697942,0.00615053,38801.0,38795.0,0.1064582]
[1643739698143,0.00615053,38801.0,38796.0,0.00145271]
[1643739699141,0.00615053,38801.0,38795.0,0.1064582]
[1643739699342,0.00571689,38801.0,38797.0,0.0014527]
[1643739700368,0.00571689,38801.0,38795.0,0.19053894]
[1643739700571,0.00571689,38801.0,38797.0,0.00145269]
[1643739701570,0.00571689,38801.0,38795.0,0.1064582]
[1643739701773,0.00571689,38801.0,38797.0,0.00145269]
[1643739702374,0.3926048,38804.0,38797.0,0.00145269]
[1643739702572,0.349252,38803.0,38797.0,0.00145269]
[1643739702776,0.1918404,38802.0,38795.0,0.1064582]
[1643739702973,0.1918404,38802.0,38797.0,0.00145272]
[1643739703473,0.1918404,38802.0,38795.0,0.10528955]
[1643739703772,0.1918404,38802.0,38795.0,0.10273273]
[1643739704619,0.1918404,38802.0,38791.0,0.3764]
[1643739704821,0.064459,38800.0,38792.0,0.05]
[1643739705020,0.20084328,38799.0,38792.0,0.05]
[1643739705220,0.064459,38800.0,38792.0,0.05]
[1643739705424,0.00571689,38799.0,38792.0,0.05]
[1643739706624,0.00571689,38799.0,38794.0,0.00145094]
[1643739707223,0.00571689,38799.0,38796.0,0.10105685]
[1643739707874,0.18444272,38803.0,38797.0,1.2]
[1643739708076,0.1873214,38804.0,38797.0,1.2]
[1643739709275,0.1873214,38804.0,38798.0,0.23542345]
[1643739709675,0.1873214,38804.0,38797.0,1.2]
[1643739710274,0.1880361,38804.0,38797.0,1.2]
[1643739710475,0.1880361,38804.0,38799.0,0.09099015]
[1643739710678,0.0007147,38804.0,38799.0,0.09099015]
[1643739711076,0.0007147,38804.0,38799.0,0.19099015]
[1643739711275,0.23033165,38811.0,38799.0,0.19099015]
[1643739711528,0.00142231,38804.0,38803.0,0.91342131]
[1643739711726,0.00142231,38804.0,38803.0,0.8]
[1643739711925,0.00142231,38804.0,38798.0,0.00145268]
[1643739712331,0.00142231,38804.0,38797.0,1.25]
[1643739712525,0.2089983,38808.0,38797.0,1.25]
[1643739712726,0.00142229,38804.0,38799.0,0.01973623]
[1643739713526,0.00142229,38804.0,38798.0,0.1029225]
[1643739713727,0.2089983,38808.0,38798.0,0.10366391]
[1643739713931,0.349252,38807.0,38798.0,0.10366391]
[1643739714130,0.22854212,38806.0,38799.0,0.01876839]
[1643739714329,0.349252,38805.0,38799.0,0.01876839]
[1643739714528,0.21019414,38804.0,38798.0,0.00074141]
[1643739714728,0.21019414,38804.0,38797.0,1.3]
[1643739714930,0.21860308,38806.0,38798.0,0.00145404]
[1643739715270,0.00142502,38804.0,38798.0,0.00145404]
[1643739715468,0.349252,38803.0,38798.0,0.00145404]
[1643739715666,0.19685913,38802.0,38798.0,0.00145404]
[1643739715869,0.349252,38801.0,38799.0,0.85]
[1643739716767,0.06445526,38802.0,38799.0,0.85]
[1643739717168,0.413708,38801.0,38797.0,0.05]
[1643739717369,0.413708,38801.0,38796.0,0.24432085]
[1643739717370,0.18844584,38800.0,38796.0,0.24432085]
[1643739717567,0.349252,38799.0,38796.0,0.24432085]
[1643739717767,0.064456,38801.0,38796.0,0.22375927]
[1643739717968,0.349252,38800.0,38796.0,0.22375927]
[1643739718169,0.064456,38801.0,38796.0,0.22375927]
[1643739718371,0.064456,38801.0,38797.0,0.10053908]
[1643739718569,0.19021347,38800.0,38797.0,0.00074499]
[1643739719318,0.25715444,38800.0,38797.0,0.00074499]
[1643739719518,0.2615862,38800.0,38797.0,0.05074499]
[1643739719718,0.349252,38799.0,38793.0,0.05]
[1643739719918,0.18889325,38798.0,38797.0,0.00145581]
[1643739720320,0.064461,38799.0,38797.0,0.30145581]
[1643739720820,0.064461,38799.0,38797.0,0.3]
[1643739722869,0.349252,38798.0,38797.0,0.3]
[1643739723272,0.128918,38801.0,38797.0,0.4242581]
[1643739723471,0.18859373,38800.0,38797.0,0.4242581]
[1643739723674,0.064457,38801.0,38797.0,0.4242581]
[1643739723871,0.064457,38801.0,38799.0,0.10192279]
[1643739724271,0.064456,38805.0,38799.0,0.10192279]
[1643739725074,0.064453,38804.0,38799.0,0.10192279]
[1643739725474,0.064453,38804.0,38798.0,0.00145578]
[1643739725675,0.064453,38804.0,38797.0,0.5242581]
[1643739725875,0.064453,38804.0,38800.0,0.00145575]
[1643739726074,0.25687433,38804.0,38800.0,0.00145575]
[1643739726278,0.349252,38803.0,38800.0,0.00145575]
[1643739726521,0.18872468,38802.0,38800.0,0.00145575]
[1643739726724,0.349252,38801.0,38800.0,0.00145575]
[1643739726922,0.53801731,38801.0,38797.0,0.3]
[1643739727122,0.53801731,38801.0,38799.0,0.00145576]
[1643739727123,0.60247431,38801.0,38799.0,0.00145576]
[1643739727524,0.00142138,38806.0,38799.0,0.00145576]
[1643739727724,0.064453,38805.0,38799.0,0.00145576]
[1643739727927,0.19571381,38804.0,38799.0,0.00145576]
[1643739728124,0.19571381,38804.0,38797.0,0.3]
[1643739728326,0.19571381,38804.0,38800.0,0.00145575]
[1643739728526,0.349252,38803.0,38800.0,0.00145575]
[1643739728827,0.20228934,38802.0,38800.0,0.00145575]
[1643739729026,0.349252,38801.0,38800.0,0.00145575]
[1643739729225,0.349252,38801.0,38800.0,0.4]
[1643739729626,0.53799658,38802.0,38800.0,0.4]
[1643739729827,0.19015712,38801.0,38800.0,0.4]
[1643739730026,0.53940912,38801.0,38799.0,0.00145576]
[1643739730272,0.19266968,38800.0,38799.0,0.00145576]
[1643739730472,0.20325933,38800.0,38797.0,0.3]
[1643739730668,0.32539756,38801.0,38798.0,0.00145578]
[1643739730869,0.32539756,38801.0,38792.0,0.00582401]
[1643739730870,0.6880503,38800.0,38792.0,0.00582401]
[1643739731068,0.32584637,38797.0,38792.0,0.00582401]
[1643739731269,0.29945146,38796.0,38792.0,0.00582401]
[1643739731473,0.62529783,38796.0,38792.0,0.00582401]
[1643739731671,0.62529783,38796.0,38786.0,0.4836]
[1643739731672,0.16235045,38794.0,38786.0,0.4836]
[1643739731870,0.31791405,38793.0,38786.0,0.1143]
[1643739732071,0.31791405,38793.0,38785.0,0.134228]
[1643739732270,0.31791405,38793.0,38787.0,0.02056551]
[1643739733170,0.31791405,38793.0,38788.0,0.00074334]
[1643739734024,0.31791405,38793.0,38786.0,0.29342761]
[1643739734223,0.24645703,38793.0,38789.0,0.00074333]
[1643739735221,0.24645703,38793.0,38785.0,0.0053]
[1643739735523,0.064479,38792.0,38789.0,0.00145414]
[1643739735821,0.27009001,38791.0,38789.0,0.00145414]
[1643739736221,0.0516,38791.0,38789.0,0.00145414]
[1643739736420,0.0516,38791.0,38785.0,0.0053]
[1643739736723,0.0516,38791.0,38788.0,0.00145415]
[1643739736921,0.0516,38791.0,38790.0,0.69962646]
[1643739737522,0.0516,38791.0,38790.0,0.9693035]
[1643739737778,0.0516,38791.0,38790.0,1.05842872]
[1643739738673,0.0516,38791.0,38790.0,0.78875168]
[1643739739075,0.0516,38791.0,38790.0,1.53875168]
[1643739739282,0.9864461,38799.0,38790.0,1.59578268]
[1643739739475,0.9864461,38799.0,38790.0,1.58875168]
[1643739739674,0.9864461,38799.0,38796.0,0.19550661]
[1643739739875,0.9864461,38799.0,38796.0,0.24550661]
[1643739740275,0.9864461,38799.0,38796.0,0.16472214]
[1643739740476,0.9814461,38799.0,38796.0,0.16472214]
[1643739741275,0.9814461,38799.0,38798.0,1.04885609]
[1643739741724,0.9814461,38799.0,38798.0,0.95]
[1643739742624,0.9814461,38799.0,38796.0,0.11478923]
[1643739742826,0.9814461,38799.0,38796.0,0.00122272]
[1643739743725,0.9814461,38799.0,38792.0,0.05]
[1643739743925,0.9814461,38799.0,38796.0,0.00122273]
[1643739744925,0.1952458,38798.0,38794.0,0.064456]
[1643739745125,0.1952458,38798.0,38796.0,0.00122273]
[1643739745372,0.349263,38797.0,38796.0,0.00122273]
[1643739745573,0.65073401,38797.0,38796.0,0.00122273]
[1643739745972,0.65073401,38797.0,38787.0,0.128921]
[1643739746171,0.16541834,38789.0,38787.0,0.128921]
[1643739746372,0.16541834,38789.0,38786.0,0.00483168]
[1643739746373,0.25445341,38788.0,38786.0,0.00483168]
[1643739746573,0.19238443,38787.0,38786.0,0.00483168]
[1643739746771,0.24398443,38787.0,38786.0,0.00483168]
[1643739746973,0.24398443,38787.0,38786.0,0.40483168]
[1643739747174,0.24398443,38787.0,38786.0,0.4]
[1643739747872,0.400863,38787.0,38786.0,0.4]
[1643739748874,0.0516,38787.0,38786.0,0.9]
[1643739749920,0.0516,38787.0,38786.0,0.4]
[1643739750320,0.0516,38787.0,38785.0,0.00675269]
[1643739750321,0.59927689,38787.0,38785.0,0.00675269]
[1643739750519,0.19324298,38786.0,38785.0,0.00675269]
[1643739750720,0.349263,38786.0,38785.0,0.00675269]
[1643739750921,0.0516,38787.0,38785.0,0.8053]
[1643739752419,0.0466,38787.0,38785.0,0.8053]
[1643739753270,0.0466,38787.0,38785.0,0.0053]
[1643739753468,0.349263,38786.0,38785.0,0.0053]
[1643739753667,0.0516,38786.0,38785.0,0.0053]
[1643739753868,0.0516,38786.0,38785.0,1.1553]
[1643739754067,0.0516,38786.0,38785.0,1.23710213]
[1643739754268,0.0516,38786.0,38785.0,1.28710213]
[1643739754468,0.0516,38786.0,38785.0,1.40209112]
[1643739755667,0.0516,38786.0,38785.0,1.35209112]
[1643739755869,0.0516,38786.0,38785.0,1.34709112]
[1643739756067,0.0516,38786.0,38785.0,1.23210213]